bitfinex/quotes_SOLUSD_20241218
["timestamp","ask_amount","ask_price","bid_price","bid_amount"]
[1734482259172,0.84526537,221.87,221.8,23.776884]
[1734482259535,34.69198314,221.9,221.8,23.776884]
[1734482259748,34.69198314,221.92,221.83,20.0]
[1734482259944,0.84508888,221.91,221.84,23.776884]
[1734482260341,34.69198314,221.9,221.84,23.776884]
[1734482260569,0.84514983,221.89,221.84,23.776884]
[1734482262970,0.84514983,221.89,221.78,1.6296]
[1734482263284,34.69198314,221.88,221.82,20.0]
[1734482263484,0.84528011,221.87,221.78,1.6296]
[1734482263792,34.69198314,221.86,221.78,1.6296]
[1734482263997,0.84524966,221.85,221.78,1.6296]
[1734482265292,0.84524966,221.85,221.7,1.5270165]
[1734482265293,34.69198314,221.82,221.71,8.034]
[1734482265491,0.84524966,221.85,221.71,8.034]
[1734482265492,0.84538414,221.84,221.71,8.034]
[1734482266368,0.84535728,221.83,221.71,8.034]
[1734482266688,0.84535115,221.85,221.72,23.776884]
[1734482266888,0.84535115,221.85,221.75,20.0]
[1734482267206,6.0535,221.94,221.76,24.08986115]
[1734482267207,0.84519759,221.87,221.76,24.08986115]
[1734482267763,34.69198314,221.89,221.76,24.08986115]
[1734482267764,0.84519422,221.88,221.76,24.08986115]
[1734482268271,0.84519422,221.88,221.79,20.0]
[1734482268700,0.84519422,221.88,221.8,23.776884]
[1734482268911,0.84515986,221.87,221.79,20.0]
[1734482269109,0.84515986,221.87,221.8,23.776884]
[1734482270001,21.42734391,221.89,221.8,23.776884]
[1734482270002,0.84518993,221.88,221.8,23.776884]
[1734482270736,21.42734391,221.87,221.74,20.0]
[1734482271032,0.84521703,221.86,221.74,20.0]
[1734482271404,22.27256094,221.86,221.74,20.0]
[1734482271934,22.27256094,221.86,221.72,23.776884]
[1734482272094,22.27256094,221.86,221.71,8.034]
[1734482273301,21.42734391,221.85,221.72,23.776884]
[1734482273511,0.84542581,221.84,221.72,23.776884]
[1734482273710,0.84542581,221.84,221.71,8.034]
[1734482273711,21.42734391,221.83,221.71,1.6296]
[1734482273915,22.27287548,221.82,221.71,1.6296]
[1734482274140,0.84553157,221.82,221.71,1.6296]
[1734482274413,21.42734391,221.79,221.71,1.6296]
[1734482274613,0.84570655,221.78,221.71,1.6296]
[1734482275352,0.84553766,221.81,221.71,1.6296]
[1734482275917,0.84553766,221.81,221.72,23.776884]
[1734482276128,21.42734391,221.84,221.71,1.6296]
[1734482276355,21.42734391,221.82,221.71,1.6296]
[1734482276565,0.8454052,221.83,221.71,1.6296]
[1734482276566,0.845478,221.81,221.71,1.6296]
[1734482276731,0.84545654,221.83,221.71,1.6296]
[1734482277637,0.84545654,221.83,221.72,23.776884]
[1734482277837,21.42734391,221.86,221.72,23.776884]
[1734482278366,21.42734391,221.84,221.72,23.776884]
[1734482278557,6.4801,221.94,221.71,1.6296]
[1734482278558,21.42734391,221.82,221.71,1.6296]
[1734482278735,0.84552248,221.81,221.71,1.6296]
[1734482280029,21.42734391,221.8,221.72,23.776884]
[1734482280233,0.84560506,221.79,221.72,23.776884]
[1734482280450,21.42734391,221.86,221.72,23.776884]
[1734482280775,21.42734391,221.87,221.72,23.776884]
[1734482281069,21.42734391,221.85,221.72,23.776884]
[1734482281851,21.42734391,221.89,221.75,20.0]
[1734482282047,0.84525033,221.88,221.76,23.776884]
[1734482282271,0.84522268,221.88,221.76,30.396184]
[1734482282770,0.84515813,221.9,221.8,23.776884]
[1734482283082,0.84509766,221.92,221.84,1.6154]
[1734482283371,0.84498715,221.96,221.87,20.0]
[1734482283612,0.84483017,221.99,221.88,23.776884]
[1734482283817,22.27217408,221.99,221.88,23.776884]
[1734482284372,21.42734391,221.98,221.88,23.776884]
[1734482284679,0.84487391,221.97,221.88,23.776884]
[1734482285613,22.27221782,221.97,221.88,23.776884]
[1734482285903,6.1469,222.0,221.88,23.776884]
[1734482285904,0.84489233,221.96,221.88,23.776884]
[1734482286813,0.844844,221.98,221.88,23.776884]
[1734482288184,21.42734391,221.95,221.84,1.6154]
[1734482288511,6.1469,222.0,221.85,23.776884]
[1734482288512,0.84508971,221.94,221.85,23.776884]
[1734482289373,0.84503681,221.93,221.85,23.776884]
[1734482289671,0.84501249,221.95,221.85,23.776884]
[1734482290310,21.42734391,221.93,221.84,1.6154]
[1734482290478,0.84517855,221.92,221.84,1.6154]
[1734482291308,0.84517855,221.92,221.77,1.6154]
[1734482291642,0.84517855,221.92,221.78,23.776884]
[1734482292203,21.42734391,221.89,221.77,1.6154]
[1734482292421,21.42734391,221.85,221.71,8.033]
[1734482292597,0.84545743,221.84,221.71,8.033]
[1734482292795,0.84535824,221.86,221.71,8.033]
[1734482293725,0.84535824,221.86,221.72,23.776884]
[1734482295201,21.42734391,221.85,221.72,23.776884]
[1734482295540,0.84546455,221.84,221.72,23.776884]
[1734482297005,0.84545515,221.83,221.72,23.776884]
[1734482297343,0.84537443,221.86,221.73,0.31333084]
[1734482297519,0.84526398,221.9,221.76,23.776884]
[1734482297723,0.84526398,221.9,221.75,20.0]
[1734482298026,21.42734391,221.89,221.76,23.776884]
[1734482298223,21.42734391,221.87,221.76,23.776884]
[1734482298431,0.8454386,221.86,221.76,23.776884]
[1734482298866,0.8454386,221.86,221.71,1.6154]
[1734482299561,0.8454386,221.86,221.71,1.92871462]
[1734482299767,0.84527819,221.88,221.71,1.92871462]
[1734482299966,0.84527819,221.88,221.71,2.92871462]
[1734482300264,21.42734391,221.9,221.72,23.776884]
[1734482300601,6.621,221.93,221.72,23.776884]
[1734482300602,21.42734391,221.88,221.72,23.776884]
[1734482300766,0.84543927,221.87,221.72,23.776884]
[1734482300972,21.42734391,221.86,221.72,23.776884]
[1734482301170,21.42734391,221.82,221.71,1.6154]
[1734482301373,21.42734391,221.87,221.71,1.6154]
[1734482301374,21.42734391,221.8,221.71,1.6154]
[1734482301683,0.84560185,221.79,221.71,1.6154]
[1734482301868,0.84550035,221.81,221.71,1.6154]
[1734482302689,0.84545589,221.83,221.71,1.6154]
[1734482303004,0.84545589,221.83,221.72,23.776884]
[1734482303710,0.84535285,221.88,221.72,23.776884]
[1734482304467,21.42734391,221.87,221.72,23.776884]
[1734482304703,0.84547995,221.86,221.72,23.776884]
[1734482305906,6.621,221.93,221.76,23.776884]
[1734482305907,0.84534908,221.92,221.76,23.776884]
[1734482306078,0.84534908,221.92,221.77,0.3128329]
[1734482306395,22.27269299,221.92,221.76,23.776884]
[1734482306912,0.84534908,221.92,221.78,23.776884]
[1734482307578,21.42734391,221.89,221.76,20.0]
[1734482307885,0.84528822,221.88,221.76,20.0]
[1734482308093,21.42734391,221.87,221.76,20.0]
[1734482308404,0.84539056,221.86,221.76,20.0]
[1734482308617,0.84539056,221.86,221.73,5.31105879]
[1734482309311,0.84539056,221.86,221.74,23.776884]
[1734482309511,0.84539056,221.86,221.72,23.776884]
[1734482309883,21.42734391,221.87,221.72,23.776884]
[1734482310088,0.84538675,221.86,221.72,23.776884]
[1734482311011,0.84524956,221.88,221.76,23.776884]
[1734482311217,0.4266,221.97,221.8,23.776884]
[1734482311218,0.8451322,221.9,221.8,23.776884]
[1734482312117,0.84515223,221.89,221.8,23.776884]
[1734482312306,0.84516112,221.92,221.8,23.776884]
[1734482315502,0.84516112,221.92,221.81,1.6089]
[1734482315698,0.84501557,221.94,221.82,23.776884]
[1734482315921,0.84494375,221.97,221.82,23.776884]
[1734482317020,22.27228766,221.97,221.82,23.776884]
[1734482317320,0.84494375,221.97,221.82,23.776884]
[1734482317560,0.84494375,221.97,221.86,23.776884]
[1734482317742,21.42734391,222.02,221.86,23.776884]
[1734482318048,0.84481876,222.01,221.86,23.776884]
[1734482318216,22.27216267,222.01,221.86,23.776884]
[1734482318943,21.42734391,222.0,221.86,23.776884]
[1734482319153,6.3815,222.04,221.82,5.31105879]
[1734482319154,21.42734391,221.94,221.82,5.31105879]
[1734482319363,22.27249111,221.93,221.82,20.0]
[1734482319523,21.42734391,221.92,221.81,1.6089]
[1734482319848,0.84516554,221.91,221.81,1.6089]
[1734482320452,0.84508682,221.94,221.81,1.6089]
[1734482321181,0.84508682,221.94,221.82,23.776884]
[1734482321760,21.42734391,221.93,221.82,23.776884]
[1734482322055,0.84519115,221.92,221.81,1.6089]
[1734482322545,21.42734391,221.91,221.81,1.6089]
[1734482322750,0.84533997,221.9,221.81,1.6089]
[1734482323119,21.42734391,221.89,221.81,1.6089]
[1734482323348,0.84535285,221.88,221.76,5.31105879]
[1734482324341,0.84535285,221.88,221.77,23.776884]
[1734482324557,0.84522841,221.87,221.77,23.776884]
[1734482324727,0.84526343,221.9,221.77,23.776884]
[1734482325261,21.42734391,221.89,221.77,23.776884]
[1734482325437,0.84532638,221.88,221.77,23.776884]
[1734482325925,0.84522817,221.9,221.77,23.776884]
[1734482328342,21.42734391,221.89,221.76,5.31105879]
[1734482328551,0.84538472,221.88,221.76,5.31105879]
[1734482329668,0.8452445,221.87,221.77,23.776884]
[1734482329959,0.84524026,221.9,221.77,23.776884]
[1734482330860,21.42734391,221.93,221.77,23.776884]
[1734482330861,0.8451845,221.89,221.77,23.776884]
[1734482331167,0.84518006,221.92,221.77,23.776884]
[1734482331327,21.42734391,221.91,221.77,23.776884]
[1734482331654,21.42734391,221.89,221.77,23.776884]
[1734482331966,0.84536169,221.88,221.77,23.776884]
[1734482332327,0.84536169,221.88,221.75,1.6089]
[1734482333043,0.84527448,221.87,221.75,1.6089]
[1734482333246,0.84527136,221.9,221.76,20.0]
[1734482333680,0.84527136,221.9,221.77,23.776884]
[1734482336224,0.84517957,221.89,221.77,29.08794279]
[1734482336389,0.84518151,221.92,221.77,29.08794279]
[1734482336681,0.84518151,221.92,221.81,23.776884]
[1734482337077,0.8451057,221.94,221.81,23.776884]
[1734482337956,22.27244961,221.94,221.81,23.776884]
[1734482338158,21.42734391,221.93,221.81,23.776884]
[1734482338356,0.84525402,221.92,221.77,6.31105879]
[1734482338563,21.42734391,221.91,221.77,6.31105879]
[1734482338856,0.84527236,221.9,221.77,5.31105879]
[1734482339785,21.42734391,221.88,221.77,5.31105879]
[1734482339991,0.84541626,221.87,221.76,20.0]
[1734482340791,0.84541626,221.87,221.75,1.6089]
[1734482340998,0.84541626,221.87,221.73,6.518]
[1734482340999,21.42734391,221.84,221.72,5.31105879]
[1734482341183,0.84562021,221.83,221.7,2.1654165]
[1734482342390,0.84562021,221.83,221.71,23.776884]
[1734482342572,0.84549804,221.82,221.71,23.776884]
[1734482342894,0.84547948,221.85,221.71,23.776884]
[1734482343108,0.84547948,221.85,221.71,29.08794279]
[1734482343398,0.84547948,221.85,221.75,23.776884]
[1734482343897,0.84547948,221.85,221.73,23.776884]
[1734482344110,0.84540347,221.84,221.73,23.776884]
[1734482344307,13.40134738,221.86,221.73,23.776884]
[1734482344477,0.84547208,221.85,221.71,23.776884]
[1734482344675,13.40134738,221.84,221.7,2.1654165]
[1734482344889,13.40134738,221.82,221.7,2.1654165]
[1734482345095,0.84566065,221.81,221.7,2.1654165]
[1734482345676,13.40134738,221.74,221.7,0.5270165]
[1734482345875,13.40134738,221.72,221.7,0.5270165]
[1734482346235,14.24734381,221.71,221.7,0.5270165]
[1734482346498,0.84599643,221.71,221.7,0.5270165]
[1734482347475,14.24734381,221.71,221.7,0.5270165]
[1734482348187,22.31262559,221.71,221.7,0.5270165]
[1734482348773,0.84599643,221.71,221.7,0.5270165]
[1734482348980,21.46662916,221.76,221.7,0.5270165]
[1734482349207,0.84584924,221.75,221.7,0.5270165]
[1734482350705,22.3124784,221.75,221.7,0.5270165]
[1734482351175,0.84584924,221.75,221.7,0.5270165]
[1734482351378,0.84586786,221.74,221.7,0.5270165]
[1734482353806,0.84580114,221.73,221.7,0.5270165]
[1734482354014,21.46662916,221.74,221.7,0.5270165]
[1734482354211,6.7847,221.8,221.7,0.5270165]
[1734482354212,21.46662916,221.72,221.7,0.5270165]
[1734482354384,22.31264396,221.71,221.7,0.5270165]
[1734482354781,0.8460148,221.71,221.7,0.5270165]
[1734482355277,21.46662916,221.73,221.7,0.5270165]
[1734482355278,22.31264847,221.72,221.7,0.5270165]
[1734482355479,21.46662916,221.71,221.7,0.5270165]
[1734482355796,0.84609406,221.75,221.7,0.5270165]
[1734482356800,0.84572898,221.77,221.7,0.5270165]
[1734482357687,22.31235814,221.77,221.7,0.5270165]
[1734482358085,0.84572898,221.77,221.7,0.5270165]
[1734482358505,0.84568511,221.76,221.7,0.5270165]
[1734482359211,0.84561604,221.78,221.7,0.5270165]
[1734482359588,0.84559308,221.84,221.72,23.776884]
[1734482359794,6.3581,221.93,221.72,23.776884]
[1734482359795,21.46662916,221.88,221.74,23.776884]
[1734482360014,0.84533582,221.87,221.74,23.776884]
[1734482360504,22.31196498,221.87,221.74,23.776884]
[1734482360708,21.46662916,221.86,221.74,23.776884]
[1734482361022,0.84545269,221.85,221.74,23.776884]
[1734482362199,21.46662916,221.84,221.74,23.776884]
[1734482362392,0.84552992,221.83,221.74,23.776884]
[1734482362595,0.84535695,221.86,221.73,0.31329587]
[1734482362794,22.31189073,221.9,221.75,23.776884]
[1734482363120,21.46662916,221.89,221.75,23.776884]
[1734482363308,0.84533207,221.88,221.75,23.776884]
[1734482363511,21.46662916,221.87,221.74,6.1135199]
[1734482363821,0.84547119,221.86,221.74,20.0]
[1734482365120,0.84547119,221.86,221.75,23.776884]
[1734482365702,0.84534151,221.85,221.75,23.776884]
[1734482365897,0.84533705,221.88,221.75,23.776884]
[1734482366335,21.46662916,221.87,221.75,23.776884]
[1734482366534,0.84547094,221.86,221.75,23.776884]
[1734482367428,6.3581,221.93,221.76,0.31336467]
[1734482367429,22.31202051,221.92,221.76,0.31336467]
[1734482367618,0.84539135,221.92,221.81,23.776884]
[1734482367817,0.84506338,221.95,221.83,23.776884]
[1734482368835,13.38628547,221.91,221.8,1.534]
[1734482369009,13.38628547,221.88,221.8,1.534]
[1734482369210,0.84534568,221.87,221.8,1.534]
[1734482370124,0.84529848,221.86,221.8,1.534]
[1734482370315,0.84526091,221.89,221.8,1.534]
[1734482370937,0.84526091,221.89,221.81,23.776884]
[1734482371105,0.84517265,221.92,221.81,23.776884]
[1734482372320,0.84508194,221.91,221.81,23.776884]
[1734482372531,0.84507351,221.94,221.81,23.776884]
[1734482373530,0.84507327,221.93,221.81,23.776884]
[1734482373715,0.84506053,221.96,221.81,23.776884]
[1734482373961,14.231346,221.96,221.81,23.776884]
[1734482374147,13.38628547,221.95,221.81,23.776884]
[1734482374466,13.38628547,221.93,221.81,23.776884]
[1734482374668,0.84519537,221.92,221.81,23.776884]
[1734482376247,13.38628547,221.91,221.8,1.7214426]
[1734482376547,0.84524441,221.9,221.8,1.7214426]
[1734482376949,14.23152988,221.9,221.8,1.7214426]
[1734482377957,0.84524441,221.9,221.8,1.7214426]
[1734482379394,0.84524441,221.9,221.81,23.776884]
[1734482379584,0.84527148,221.93,221.81,29.8904039]
[1734482380495,14.23149797,221.92,221.81,23.776884]
[1734482381569,13.38628547,221.91,221.81,23.776884]
[1734482381774,0.84529686,221.9,221.81,23.776884]
[1734482382080,0.84529686,221.9,221.8,1.7214426]
[1734482382391,14.23158233,221.9,221.8,1.7214426]
[1734482382966,13.38628547,221.89,221.8,1.7214426]
[1734482383197,0.84538386,221.88,221.81,23.776884]
[1734482384173,0.84538386,221.88,221.8,0.1874426]
[1734482384174,13.38628547,221.87,221.8,0.1874426]
[1734482384378,0.8454744,221.86,221.8,0.1874426]
[1734482385571,0.84543335,221.85,221.8,0.1874426]
[1734482385805,0.84536933,221.89,221.8,0.1874426]
[1734482386277,14.2316548,221.89,221.8,0.1874426]
[1734482388118,13.38628547,221.88,221.8,0.1874426]
[1734482388291,0.84548027,221.87,221.8,0.1874426]
[1734482389603,14.23176574,221.87,221.8,0.1874426]
[1734482389814,13.38628547,221.84,221.8,0.1874426]
[1734482390003,0.84557026,221.83,221.8,0.1874426]
[1734482390890,0.84553797,221.82,221.8,0.1874426]
[1734482392002,0.84558971,221.81,221.8,0.1874426]
[1734482392519,0.84559332,221.84,221.8,0.1874426]
[1734482393111,22.58268296,221.88,221.8,0.1874426]
[1734482393112,0.84540561,221.87,221.8,0.1874426]
[1734482394309,14.23169108,221.87,221.8,0.1874426]
[1734482394894,0.84540561,221.87,221.8,0.1874426]
[1734482395116,14.23169108,221.87,221.8,0.1874426]
[1734482395507,0.84540561,221.87,221.8,0.1874426]
[1734482397407,0.84536767,221.86,221.8,0.1874426]
[1734482397594,0.84537615,221.89,221.8,0.1874426]
[1734482398606,0.84533833,221.88,221.8,0.1874426]
[1734482399619,0.84537527,221.87,221.8,0.1874426]
[1734482400233,13.38628547,221.84,221.8,0.1874426]
[1734482400448,0.84561928,221.83,221.8,0.1874426]
[1734482401433,2.70164854,221.88,221.8,0.1874426]
[1734482401434,0.84556787,221.82,221.8,0.1874426]
[1734482401733,13.38628547,221.85,221.8,0.1874426]
[1734482402103,0.84561346,221.84,221.8,0.1874426]
[1734482403109,14.23177026,221.86,221.8,0.1874426]
[1734482403728,0.84548479,221.86,221.8,0.1874426]
[1734482403942,13.38628547,221.83,221.8,0.1874426]
[1734482404255,0.84561262,221.82,221.8,0.1874426]
[1734482404743,20.0,221.9,221.8,0.1874426]
[1734482404744,0.84544915,221.83,221.8,0.1874426]
[1734482405036,0.84536493,221.89,221.8,0.1874426]
[1734482405544,0.8451505,221.94,221.82,23.776884]
[1734482405705,14.23143597,221.94,221.82,23.776884]
[1734482405908,0.8451505,221.94,221.82,23.776884]
[1734482406219,13.38628547,221.95,221.82,23.776884]
[1734482406402,0.84512948,221.94,221.82,23.776884]
[1734482407041,0.84504014,221.98,221.82,23.776884]
[1734482407205,14.23132561,221.98,221.82,23.776884]
[1734482407719,13.38628547,221.97,221.82,23.776884]
[1734482407910,0.84497481,221.96,221.82,23.776884]
[1734482408111,14.23126028,221.96,221.82,23.776884]
[1734482408306,13.38628547,221.95,221.82,23.776884]
[1734482408508,0.84510034,221.94,221.82,23.776884]
[1734482409411,0.84492613,221.97,221.82,23.776884]
[1734482409746,0.84492613,221.97,221.81,8.68837268]
[1734482409747,0.84492613,221.97,221.81,8.0124]
[1734482410470,0.84492613,221.97,221.81,13.97627025]
[1734482410612,0.84492613,221.97,221.82,0.67594929]
[1734482410817,0.84492613,221.97,221.84,20.0]
[1734482411010,0.84492613,221.97,221.85,23.776884]
[1734482411393,0.84492613,221.97,221.83,23.776884]
[1734482412758,0.84488322,221.99,221.91,23.776884]
[1734482412919,0.84477282,222.04,221.93,23.776884]
[1734482413942,0.84462314,222.07,221.93,23.776884]
[1734482414463,14.23090861,222.07,221.93,23.776884]
[1734482414625,0.84462314,222.07,221.93,23.776884]
[1734482415237,0.84462314,222.07,221.95,23.776884]
[1734482416355,14.23090861,222.07,221.95,23.776884]
[1734482416668,0.84462314,222.07,221.98,20.0]
[1734482416823,0.84446895,222.09,221.99,23.776884]
[1734482417973,13.38628547,222.03,221.94,1.5855]
[1734482418159,13.38628547,222.0,221.94,1.5855]
[1734482418465,13.38628547,222.09,221.84,0.1874426]
[1734482418466,13.38628547,221.96,221.88,1.6603]
[1734482418766,0.34499732,221.95,221.88,1.6603]
[1734482419079,13.73128279,221.95,221.88,1.6603]
[1734482419233,0.34499732,221.95,221.88,1.6603]
[1734482419565,0.34499732,221.95,221.84,0.1874426]
[1734482419566,13.73128279,221.95,221.84,0.1874426]
[1734482419730,13.38628547,221.9,221.84,0.1874426]
[1734482420061,13.7637035,221.89,221.84,0.1874426]
[1734482420661,13.38628547,221.87,221.84,0.1874426]
[1734482420865,0.37741803,221.86,221.84,0.1874426]
[1734482422328,0.37741803,221.88,221.84,0.1874426]
[1734482423054,0.37741803,221.9,221.84,0.1874426]
[1734482425174,0.37741803,221.91,221.84,0.1874426]
[1734482426465,0.37741803,221.93,221.84,0.1874426]
[1734482427455,13.7637035,221.93,221.84,0.1874426]
[1734482427654,0.37741803,221.93,221.84,0.1874426]
[1734482427958,0.37741803,221.94,221.84,0.1874426]
[1734482428163,13.7637035,221.94,221.84,0.1874426]
[1734482429183,0.37741803,221.94,221.84,0.1874426]
[1734482429386,0.37741803,221.95,221.84,0.1874426]
[1734482429575,13.38628547,221.9,221.84,0.1874426]
[1734482429794,13.38628547,221.86,221.84,0.1874426]
[1734482429959,0.37741803,221.85,221.84,0.1874426]
[1734482430592,0.37741803,221.87,221.84,0.1874426]
[1734482431524,0.37741803,221.89,221.84,0.1874426]
[1734482431823,0.37741803,221.92,221.84,0.1874426]
[1734482432308,13.7637035,221.92,221.84,0.1874426]
[1734482432515,13.38628547,221.91,221.84,0.1874426]
[1734482432815,13.38628547,221.89,221.84,0.1874426]
[1734482432979,13.7637035,221.88,221.84,0.1874426]
[1734482434118,0.37741803,221.88,221.84,0.1874426]
[1734482434416,0.37741803,221.89,221.84,0.1874426]
[1734482434918,0.37741803,221.91,221.84,0.1874426]
[1734482435486,0.37741803,221.93,221.84,0.1874426]
[1734482436485,0.37741803,221.93,221.86,23.776884]
[1734482436794,0.37741803,221.97,221.86,23.776884]
[1734482437310,13.38628547,221.96,221.86,23.776884]
[1734482437488,13.7637035,221.95,221.86,23.776884]
[1734482438327,13.38628547,221.94,221.86,23.776884]
[1734482438503,0.37741803,221.93,221.86,23.776884]
[1734482439647,0.37741803,221.93,221.84,0.1874426]
[1734482439648,13.38628547,221.88,221.84,0.1874426]
[1734482439942,13.38628547,221.85,221.84,0.1874426]
[1734482441336,13.7637035,221.85,221.84,0.1874426]
[1734482442905,13.38628547,221.85,221.84,0.1874426]
[1734482444229,13.7637035,221.85,221.84,0.1874426]
[1734482454191,20.0,221.82,221.69,23.776884]
[1734482454474,13.38628547,221.72,221.68,1.6458]
[1734482454689,0.37741803,221.71,221.68,1.6458]
[1734482454980,13.38628547,221.7,221.68,1.6458]
[1734482455152,0.37741803,221.69,221.68,1.6458]
[1734482455880,0.37741803,221.72,221.68,1.6458]
[1734482456358,13.7637035,221.72,221.68,1.6458]
[1734482456985,13.38628547,221.71,221.68,1.6458]
[1734482457285,13.38628547,221.69,221.63,8.0065]
[1734482457482,0.37741803,221.68,221.63,8.0065]
[1734482457781,0.37741803,221.7,221.63,8.0065]
[1734482458474,0.37741803,221.72,221.64,23.776884]
[1734482459547,0.37741803,221.73,221.64,23.776884]
[1734482460394,13.7637035,221.76,221.64,23.776884]
[1734482460703,13.38628547,221.74,221.64,23.776884]
[1734482460869,0.37741803,221.73,221.64,23.776884]
[1734482461858,0.37741803,221.75,221.64,23.776884]
[1734482462059,14.23211712,221.74,221.6,20.0]
[1734482462366,14.23211712,221.74,221.61,20.0]
[1734482463472,0.84583165,221.74,221.61,20.0]
[1734482463668,14.23211712,221.74,221.61,20.0]
[1734482463869,0.84575905,221.79,221.62,20.63735588]
[1734482464078,13.38628547,221.81,221.67,23.776884]
[1734482464278,0.8454729,221.8,221.69,23.776884]
[1734482464799,14.23175837,221.8,221.69,23.776884]
[1734482464986,14.23175837,221.8,221.71,23.776884]
[1734482465594,13.38628547,221.8,221.71,23.776884]
[1734482465899,13.38628547,221.81,221.71,23.776884]
[1734482466076,0.84546713,221.8,221.71,23.776884]
[1734482467270,13.38628547,221.81,221.71,23.776884]
[1734482467271,0.84549499,221.86,221.74,20.0]
[1734482467474,13.38628547,221.88,221.77,23.776884]
[1734482467687,0.84520793,221.87,221.77,23.776884]
[1734482467897,0.84520793,221.87,221.81,1.6218]
[1734482468102,0.84517112,221.89,221.82,23.776884]
[1734482468278,0.84508821,221.91,221.82,23.776884]
[1734482468475,13.38628547,221.87,221.81,1.6218]
[1734482468802,13.38628547,221.89,221.81,1.6218]
[1734482469098,13.38628547,221.89,221.82,23.776884]
[1734482469276,13.38628547,221.9,221.82,23.776884]
[1734482469469,1.37390784,221.96,221.81,1.6218]
[1734482469470,13.38628547,221.88,221.81,1.6218]
[1734482469700,0.84523661,221.87,221.81,1.6218]
[1734482470602,13.38628547,221.86,221.81,1.6218]
[1734482470779,20.0,221.95,221.81,1.6218]
[1734482470780,13.38628547,221.84,221.81,1.6218]
[1734482470978,0.84536306,221.83,221.81,1.6218]
[1734482471274,13.38628547,221.82,221.75,1.6218]
[1734482471477,14.23179547,221.81,221.75,1.6218]
[1734482472321,0.84551,221.81,221.75,1.6218]
[1734482472875,0.8454622,221.8,221.75,1.6218]
[1734482473068,0.84546145,221.82,221.75,1.6218]
[1734482473382,14.23174692,221.82,221.75,1.6218]
[1734482475307,13.38628547,221.9,221.76,29.94682657]
[1734482475507,0.84516008,221.89,221.76,29.94682657]
[1734482476089,13.38628547,221.93,221.76,30.04682657]
[1734482476410,0.84502427,221.92,221.8,23.776884]
[1734482476777,14.23130974,221.92,221.8,23.776884]
[1734482478304,14.23130974,221.92,221.77,0.636154]
[1734482478495,13.38628547,221.88,221.75,1.6218]
[1734482478683,0.84531485,221.87,221.75,1.6218]
[1734482479480,13.38628547,221.92,221.76,0.63635202]
[1734482479687,0.84513404,221.91,221.77,23.776884]
[1734482479879,0.84513404,221.91,221.79,23.776884]
[1734482480587,0.84513404,221.91,221.77,23.776884]
[1734482480779,0.84513404,221.91,221.79,23.776884]
[1734482481722,0.84513404,221.91,221.77,23.776884]
[1734482482380,13.38628547,221.9,221.77,23.776884]
[1734482482710,0.84523837,221.89,221.77,23.776884]
[1734482482913,20.0,221.87,221.76,5.53314629]
[1734482483083,13.38628547,221.84,221.75,1.6218]
[1734482483283,0.84546218,221.83,221.75,1.6218]
[1734482484783,0.84543557,221.93,221.76,23.776884]
[1734482484998,13.38628547,221.89,221.76,23.776884]
[1734482485183,0.84527457,221.88,221.76,23.776884]
[1734482485403,13.38628547,221.87,221.76,23.776884]
[1734482485602,0.84532914,221.86,221.76,23.776884]
[1734482486184,13.38628547,221.91,221.8,23.776884]
[1734482486398,1.37406133,221.96,221.8,23.776884]
[1734482486399,0.84513235,221.9,221.8,23.776884]
[1734482487284,0.84507902,221.92,221.8,23.776884]
[1734482488507,0.5287683,221.96,221.83,20.0]
[1734482488508,0.8450778,221.93,221.83,20.0]
[1734482488696,0.84495478,221.94,221.84,25.392884]
[1734482489083,0.84495478,221.94,221.87,20.0]
[1734482489284,0.5287683,221.96,221.92,23.776884]
[1734482489717,0.5287683,221.96,221.95,43.776884]
[1734482489919,0.5287683,221.96,221.95,45.392884]
[1734482490484,0.5287683,221.96,221.95,46.02772357]
[1734482491692,0.5287683,221.96,221.95,45.392884]
[1734482493314,0.5287683,221.96,221.95,25.392884]
[1734482494399,0.5287683,221.96,221.95,1.616]
[1734482495615,0.5287683,221.96,221.95,25.392884]
[1734482499024,0.5287683,221.96,221.95,26.0276893]
[1734482499720,0.84442074,222.09,221.98,20.0]
[1734482499901,0.84442074,222.09,221.99,20.0]
[1734482500105,0.84442074,222.09,222.0,23.776884]
[1734482500623,6.1172,222.1,222.0,23.776884]
[1734482500624,6.96157933,222.1,222.0,23.776884]
[1734482500806,0.84437933,222.1,222.0,23.776884]
[1734482501599,0.84434166,222.09,222.0,23.776884]
[1734482501922,22.23807171,222.11,222.0,23.776884]